fUST/lending_fUST_20250831
["ID","MTS","AMOUNT","RATE_DAILY","PERIOD"]
[382455171,1756631441493,-480.0,0.00018257,2]
[382455172,1756631441503,-506.66,0.00018257,2]
[382455173,1756631441512,-151.0,0.00018257,2]
[382455174,1756631441521,-480.0,0.00018257,2]
[382455175,1756631441531,-1374.72,0.00018257,2]
[382455176,1756631441540,-12905.7,0.00018257,2]
[382455177,1756631441549,-480.0,0.00018257,2]
[382455178,1756631441559,-971.68,0.00018257,2]
[382455179,1756631441568,-480.0,0.00018257,2]
[382455180,1756631441579,-151.0,0.00018257,2]
[382455181,1756631441588,-480.0,0.00018257,2]
[382455182,1756631441598,-535.44,0.00018257,2]
[382455183,1756631441607,-1550.12,0.00018257,2]
[382455184,1756631441616,-2770.45,0.00018257,2]
[382455185,1756631441627,-480.0,0.00018257,2]
[382455186,1756631441636,-1940.32,0.00018257,2]
[382455187,1756631441646,-480.0,0.00018257,2]
[382455188,1756631441655,-480.0,0.00018257,2]
[382455189,1756631441664,-501.86,0.00018257,2]
[382455190,1756631441675,-481.8743327,0.00018257,2]
[382455191,1756631441684,-480.0,0.00018257,2]
[382455192,1756631441694,-599.79,0.00018257,2]
[382455193,1756631441704,-480.0,0.00018257,2]
[382455194,1756631441713,-1843.78,0.00018257,2]
[382455195,1756631441723,-445.54626521,0.00018257,2]
[382455196,1756631441732,-480.0,0.00018257,2]
[382455197,1756631441741,-1297.72,0.00018257,2]
[382455198,1756631441750,-480.0,0.00018257,2]
[382455199,1756631441759,-738.36,0.00018257,2]
[382455200,1756631441768,-480.0,0.00018257,2]
[382455201,1756631441778,-480.0,0.00018257,2]
[382455202,1756631441787,-480.0,0.00018257,2]
[382455203,1756631441796,-721.32,0.00018257,2]
[382455204,1756631441806,-480.0,0.00018257,2]
[382455205,1756631441815,-480.0,0.00018257,2]
[382455206,1756631441825,-512.56,0.00018257,2]
[382455207,1756631441833,-480.0,0.00018257,2]
[382455208,1756631441843,-480.0,0.00018257,2]
[382455209,1756631441852,-480.0,0.00018257,2]
[382455210,1756631441861,-486.65009353,0.00018257,2]
[382455211,1756631441871,-1959.04,0.00018257,2]
[382455212,1756631441880,-480.0,0.00018257,2]
[382455213,1756631441889,-480.0,0.00018257,2]
[382455214,1756631441898,-480.0,0.00018257,2]
[382455215,1756631441908,-1243.99,0.00018257,2]
[382455216,1756631441917,-480.0,0.00018257,2]
[382455217,1756631441926,-906.98,0.00018257,2]
[382455218,1756631441935,-480.0,0.00018257,2]
[382455219,1756631441944,-480.0,0.00018257,2]
[382455220,1756631441954,-650.9,0.00018257,2]
[382455221,1756631441965,-480.0,0.00018257,2]
[382455222,1756631441974,-2273.44,0.00018257,2]
[382455223,1756631441984,-1225.05,0.00018257,2]
[382455224,1756631441994,-480.0,0.00018257,2]
[382455225,1756631442003,-1782.93,0.00018257,2]
[382455226,1756631442012,-1033.69,0.00018257,2]
[382455227,1756631442021,-1869.57,0.00018257,2]
[382455228,1756631442030,-480.0,0.00018257,2]
[382455229,1756631442039,-480.0,0.00018257,2]
[382455230,1756631442048,-1093.21,0.00018257,2]
[382455231,1756631442057,-480.0,0.00018257,2]
[382455232,1756631442066,-480.0,0.00018257,2]
[382455233,1756631442075,-2153.77,0.00018257,2]
[382455234,1756631442085,-1455.08,0.00018257,2]
[382455235,1756631442094,-1949.26,0.00018257,2]
[382455236,1756631442103,-480.0,0.00018257,2]
[382455237,1756631442260,-1000.0,0.00018257,2]
[382455238,1756631442270,-151.0,0.00018257,2]
[382455239,1756631442279,-1000.0,0.00018257,2]
[382455240,1756631442289,-151.0,0.00018257,2]
[382455241,1756631442299,-1000.0,0.00018257,2]
[382455242,1756631442308,-151.0,0.00018257,2]
[382455243,1756631442318,-1000.0,0.00018257,2]
[382455244,1756631442327,-1000.0,0.00018257,2]
[382455245,1756631442336,-1000.0,0.00018257,2]
[382455246,1756631442347,-1000.0,0.00018257,2]
[382455247,1756631442357,-1000.0,0.00018257,2]
[382455248,1756631442366,-480.0,0.00018257,2]
[382455249,1756631442376,-1000.0,0.00018257,2]
[382455250,1756631442386,-480.0,0.00018257,2]
[382455251,1756631442395,-1000.0,0.00018257,2]
[382455252,1756631442405,-1000.0,0.00018257,2]
[382455253,1756631442414,-1000.0,0.00018257,2]
[382455254,1756631442425,-1000.0,0.00018257,2]
[382455255,1756631442434,-1000.0,0.00018257,2]
[382455256,1756631442443,-836.275866,0.00018257,2]
[382455257,1756631442453,-173.13617814,0.00018257,2]
[382455258,1756631442463,-480.0,0.00018257,2]
[382455259,1756631442472,-480.0,0.00018257,2]
[382455260,1756631442481,-480.0,0.00018257,2]
[382455261,1756631442490,-480.0,0.00018257,2]
[382455262,1756631442500,-1794.98,0.00018257,2]
[382455264,1756631442509,-151.0,0.00018257,2]
[382455265,1756631442519,-500.0,0.00018257,2]
[382455266,1756631442528,-555.84,0.00018257,2]
[382455267,1756631442537,-500.0,0.00018257,2]
[382455268,1756631442546,-500.0,0.00018257,2]
[382455269,1756631442556,-500.0,0.00018257,2]
[382455270,1756631442565,-500.47681387,0.00018257,2]
[382455271,1756631442578,-7621.64,0.00018257,2]
[382455273,1756631442588,-480.0,0.00018257,2]
[382455274,1756631442598,-648.93,0.00018257,2]
[382455275,1756631442607,-480.0,0.00018257,2]
[382455276,1756631442616,-481.182224,0.00018257,2]
[382455277,1756631442626,-480.0,0.00018257,2]
[382455278,1756631442636,-151.0,0.00018257,2]
[382455279,1756631442646,-151.0,0.00018257,2]
[382455280,1756631442657,-4607.93,0.00018257,2]
[382455281,1756631442667,-480.0,0.00018257,2]
[382455282,1756631442678,-480.0,0.00018257,2]
[382455283,1756631442687,-480.0,0.00018257,2]
[382455284,1756631442696,-1693.91,0.00018257,2]
[382455285,1756631442706,-480.0,0.00018257,2]
[382455286,1756631442715,-480.0,0.00018257,2]
[382455287,1756631442724,-3702.65,0.00018257,2]
[382455288,1756631442734,-154.702727,0.00018257,2]
[382455289,1756631442743,-151.0,0.00018257,2]
[382455290,1756631442753,-151.0,0.00018257,2]
[382455291,1756631442762,-151.0,0.00018257,2]
[382455292,1756631442771,-480.0,0.00018257,2]
[382455293,1756631442781,-480.88586375,0.00018257,2]
[382455294,1756631442791,-480.0,0.00018257,2]
[382455295,1756631442800,-1485.55,0.00018257,2]
[382455296,1756631442810,-480.0,0.00018257,2]
[382455297,1756631442819,-1473.14,0.00018257,2]
[382455298,1756631442828,-151.0,0.00018257,2]
[382455299,1756631442839,-480.0,0.00018257,2]
[382455300,1756631442849,-1881.33,0.00018257,2]
[382455301,1756631442858,-270.445229,0.00018257,2]
[382455302,1756631442868,-411.47985354,0.00018257,2]
[382455303,1756631442878,-480.0,0.00018257,2]
[382455304,1756631442887,-165.925572,0.00018257,2]
[382455305,1756631442897,-673.45,0.00018257,2]
[382455306,1756631442907,-480.0,0.00018257,2]
[382455307,1756631442916,-480.0,0.00018257,2]
[382455308,1756631442927,-480.0,0.00018257,2]
[382455309,1756631442936,-480.0,0.00018257,2]
[382455310,1756631442946,-2642.58,0.00018257,2]
[382455311,1756631442956,-480.0,0.00018257,2]
[382455312,1756631442967,-638.49,0.00018257,2]
[382455313,1756631442976,-480.0,0.00018257,2]
[382455314,1756631442986,-727.79,0.00018257,2]
[382455315,1756631442995,-191.45152546,0.00018257,2]
[382455316,1756631443005,-887.51,0.00018257,2]
[382455317,1756631443015,-480.94,0.00018257,2]
[382455318,1756631443024,-9350.55,0.00018257,2]
[382455319,1756631443033,-320.96472358,0.00018257,2]
[382455320,1756631443042,-480.77654323,0.00018257,2]
[382455321,1756631443052,-1092.28,0.00018257,2]
[382455322,1756631443062,-480.0,0.00018257,2]
[382455323,1756631443072,-480.0,0.00018257,2]
[382455324,1756631443081,-1305.56,0.00018257,2]
[382455325,1756631443091,-674.79,0.00018257,2]
[382455327,1756631443101,-480.0,0.00018257,2]
[382455329,1756631443110,-480.0,0.00018257,2]
[382455330,1756631443119,-480.0,0.00018257,2]
[382455331,1756631443129,-480.0,0.00018257,2]
[382455332,1756631443138,-151.0,0.00018257,2]
[382455333,1756631443147,-480.0,0.00018257,2]
[382455334,1756631443156,-151.0,0.00018257,2]
[382455335,1756631443165,-481.40225443,0.00018257,2]
[382455336,1756631443176,-480.61044114,0.00018257,2]
[382455337,1756631443186,-586.76,0.00018257,2]
[382455338,1756631443195,-4682.5,0.00018257,2]
[382455339,1756631443204,-480.0,0.00018257,2]
[382455340,1756631443214,-480.0,0.00018257,2]
[382455341,1756631443222,-480.0,0.00018257,2]
[382455342,1756631443233,-480.0,0.00018257,2]
[382455343,1756631443243,-513.75,0.00018257,2]
[382455344,1756631443252,-480.0,0.00018257,2]
[382455345,1756631443261,-480.0,0.00018257,2]
[382455346,1756631443271,-789.46,0.00018257,2]
[382455347,1756631443281,-151.0,0.00018257,2]
[382455348,1756631443290,-740.8,0.00018257,2]
[382455349,1756631443299,-1587.95,0.00018257,2]
[382455350,1756631443308,-480.0,0.00018257,2]
[382455351,1756631443317,-480.72266844,0.00018257,2]
[382455352,1756631443327,-480.0,0.00018257,2]
[382455353,1756631443336,-151.0,0.00018257,2]
[382455354,1756631443345,-167.076088,0.00018257,2]
[382455355,1756631443355,-480.0,0.00018257,2]
[382455356,1756631443365,-1845.48,0.00018257,2]
[382455357,1756631443374,-486.6603232,0.00018257,2]
[382455358,1756631443384,-984.47,0.00018257,2]
[382455359,1756631443393,-590.8,0.00018257,2]
[382455360,1756631443402,-151.0,0.00018257,2]
[382455361,1756631443411,-480.0,0.00018257,2]
[382455362,1756631443421,-266.07364189,0.00018257,2]
[382455363,1756631443431,-485.65022059,0.00018257,2]
[382455364,1756631443440,-1464.13,0.00018257,2]
[382455365,1756631443450,-502.79,0.00018257,2]
[382455366,1756631443459,-480.0,0.00018257,2]
[382455367,1756631443469,-1569.43,0.00018257,2]
[382455368,1756631443482,-480.0,0.00018257,2]
[382455369,1756631443499,-5719.55,0.00018257,2]
[382455370,1756631443515,-481.38064116,0.00018257,2]
[382455371,1756631443527,-1734.94,0.00018257,2]
[382455372,1756631443544,-151.0,0.00018257,2]
[382455373,1756631443559,-480.0,0.00018257,2]
[382455374,1756631443574,-151.0,0.00018257,2]
[382455375,1756631443592,-151.0,0.00018257,2]
[382455376,1756631443608,-480.0,0.00018257,2]
[382455377,1756631443623,-151.0,0.00018257,2]
[382455378,1756631443636,-571.52321439,0.00018257,2]
[382455379,1756631443651,-160.424535,0.00018257,2]
[382455381,1756631443666,-236.878204,0.00018257,2]
[382455382,1756631443681,-480.0,0.00018257,2]
[382455383,1756631443694,-151.0,0.00018258,2]
[382455384,1756631443708,-151.0,0.00018258,2]
[382455385,1756631443722,-151.0,0.00018258,2]
[382455386,1756631443737,-151.0,0.00018258,2]
[382455387,1756631443752,-151.0,0.00018258,2]
[382455388,1756631443769,-182.69062119,0.00018258,2]
[382455389,1756631443782,-151.0,0.00018258,2]
[382455390,1756631443793,-151.0,0.00018258,2]
[382455391,1756631443804,-151.0,0.00018258,2]
[382455392,1756631443821,-298.752792,0.00018258,2]
[382455393,1756631443835,-160.0,0.00018258,2]
[382455394,1756631443848,-120318.60408406,0.00018258,2]
[382455395,1756631444795,-381.82427582,0.00018257,2]
[382455400,1756631463795,1000.0,0.00018,2]
[382455401,1756631465188,5000.0,0.00018,2]
[382455402,1756631649113,160.0,0.00022039,30]
[382455403,1756631770173,5000.0,0.00027397,120]
[382455404,1756631773744,5000.0,0.00027397,120]
[382455405,1756631774157,5000.0,0.00027397,120]
[382455406,1756631774369,5000.0,0.00027397,120]
[382455407,1756631774709,5000.0,0.00027397,120]
[382455408,1756631775032,5000.0,0.00027397,120]
[382455409,1756631775371,5000.0,0.00027397,120]
[382455410,1756631775708,5000.0,0.00027397,120]
[382455411,1756631775998,5000.0,0.00027397,120]
[382455412,1756631780643,4999.0,0.00027397,120]
[382455413,1756631791906,-1552.11596057,0.00018146,2]
[382455414,1756631791934,-168.55473941,0.00018155,2]
[382455415,1756631791962,-250.0,0.00018165,2]
[382455416,1756631791991,-168.55473939,0.00018215,2]
[382455417,1756631792025,-160.0,0.00018241,2]
[382455418,1756631792056,-300.0,0.00018244,2]
[382455419,1756631792085,-300.0,0.00018245,2]
[382455420,1756631792113,-1720.23,0.00018245,2]
[382455421,1756631792145,-281.09912126,0.00018245,2]
[382455422,1756631792325,-198.90087874,0.00018245,2]
[382455423,1756631792354,-482.06146992,0.00018245,2]
[382455424,1756631792382,-765.43,0.00018245,2]
[382455425,1756631792411,-480.0,0.00018245,2]
[382455426,1756631792439,-480.0,0.00018245,2]
[382455427,1756631792467,-598.09,0.00018245,2]
[382455428,1756631792496,-480.0,0.00018245,2]
[382455429,1756631792524,-480.0,0.00018245,2]
[382455430,1756631792552,-480.0,0.00018245,2]
[382455431,1756631792840,-1550.77,0.00018245,2]
[382455432,1756631792869,-748.99,0.00018245,2]
[382455433,1756631792897,-480.0,0.00018245,2]
[382455434,1756631792926,-570.75,0.00018245,2]
[382455435,1756631792955,-480.0,0.00018245,2]
[382455436,1756631792984,-480.0,0.00018245,2]
[382455437,1756631793016,-480.0,0.00018245,2]
[382455438,1756631793260,-480.0,0.00018245,2]
[382455439,1756631793291,-1354.69,0.00018245,2]
[382455440,1756631793320,-480.0,0.00018245,2]
[382455441,1756631793352,-1623.26,0.00018246,2]
[382455442,1756631793384,-529.95,0.00018246,2]
[382455443,1756631793769,-1064.21,0.00018246,2]
[382455444,1756631793800,-515.39,0.00018246,2]
[382455445,1756631793831,-3308.2,0.00018246,2]
[382455446,1756631794226,-224.41,0.00018246,2]
[382455447,1756631794260,-4572.92,0.00018246,2]
[382455448,1756631794402,-405.35,0.00018246,2]
[382455449,1756631794434,-3955.73,0.00018246,2]
[382455450,1756631794465,-513.63,0.00018246,2]
[382455451,1756631794612,-250.59,0.00018246,2]
[382455452,1756631794644,-1376.88,0.00018246,2]
[382455453,1756631794675,-1703.36,0.00018246,2]
[382455454,1756631794705,-480.0,0.00018246,2]
[382455455,1756631794738,-644.23,0.00018246,2]
[382455456,1756631794985,-1089.89,0.00018246,2]
[382455457,1756631795021,-480.0,0.00018246,2]
[382455458,1756631795055,-480.0,0.00018246,2]
[382455459,1756631795087,-2207.65,0.00018246,2]
[382455460,1756631795119,-324.48,0.00018246,2]
[382455461,1756631861960,-2949.82572882,0.00018157,2]
[382455462,1756631861989,-300.0,0.00018244,2]
[382455463,1756631862018,-1200.0,0.00018244,2]
[382455464,1756631862047,-251.48425016,0.00018245,2]
[382455465,1756631862076,-117.39004204,0.00018245,2]
[382455466,1756631862271,-362.60995796,0.00018245,2]
[382455467,1756631862300,-485.47,0.00018245,2]
[382455468,1756631862328,-480.0,0.00018245,2]
[382455469,1756631862358,-827.76,0.00018245,2]
[382455470,1756631862388,-1527.73,0.00018245,2]
[382455471,1756631862418,-480.88289953,0.00018245,2]
[382455472,1756631862447,-115.48428502,0.00018245,2]
[382455473,1756631862561,-1440.13571498,0.00018245,2]
[382455474,1756631862589,-1192.09,0.00018245,2]
[382455475,1756631862619,-1350.13857004,0.00018245,2]
[382455476,1756631862787,-2035.28142996,0.00018245,2]
[382455477,1756631862815,-480.0,0.00018245,2]
[382455478,1756631862845,-609.65,0.00018245,2]
[382455479,1756631863027,-480.0,0.00018245,2]
[382455480,1756631863056,-379.90111321,0.00018245,2]
[382455481,1756631863089,-480.0,0.00018245,2]
[382455482,1756631863493,-3790.9,0.00018245,2]
[382455483,1756631863522,-480.0,0.00018245,2]
[382455484,1756631863550,-480.0,0.00018245,2]
[382455485,1756631863578,-18.21,0.00018245,2]
[382455486,1756631863764,-461.79,0.00018245,2]
[382455487,1756631863792,-480.0,0.00018245,2]
[382455488,1756631863822,-480.0,0.00018245,2]
[382455489,1756631863850,-907.77,0.00018245,2]
[382455490,1756631863878,-493.91,0.00018245,2]
[382455491,1756631863906,-480.0,0.00018245,2]
[382455492,1756631863935,-480.0,0.00018245,2]
[382455493,1756631863964,-480.0,0.00018245,2]
[382455494,1756631863993,-480.0,0.00018245,2]
[382455495,1756631864020,-33.07,0.00018245,2]
[382455496,1756631864311,-446.93,0.00018245,2]
[382455497,1756631864340,-4335.31,0.00018245,2]
[382455498,1756631864387,-435.53,0.00018245,2]
[382455499,1756631864416,-480.0,0.00018245,2]
[382455500,1756631864447,-572.69,0.00018245,2]
[382455501,1756631864475,-732.38,0.00018245,2]
[382455502,1756631864505,-481.48,0.00018245,2]
[382455503,1756631864534,-480.0,0.00018245,2]
[382455504,1756631864563,-480.0,0.00018245,2]
[382455505,1756631864591,-480.0,0.00018245,2]
[382455506,1756631864619,-685.56,0.00018245,2]
[382455507,1756631864661,-344.73,0.00018245,2]
[382455508,1756631864692,-480.0,0.00018245,2]
[382455509,1756631864723,-500.0,0.00018245,2]
[382455510,1756631864750,-500.0,0.00018245,2]
[382455511,1756631864778,-373.51163127,0.00018245,2]
[382455512,1756631864982,-500.0,0.00018245,2]
[382455513,1756631865015,-197.46316217,0.00018245,2]
[382455514,1756631865042,-500.0,0.00018245,2]
[382455515,1756631865069,-500.0,0.00018245,2]
[382455516,1756631865101,-500.0,0.00018245,2]
[382455517,1756631865131,-500.0,0.00018245,2]
[382455519,1756632059335,363.22051701,0.00031181,60]
[382455520,1756632270492,419.57604489,0.00017574,2]
[382455522,1756632378910,272.148587,0.00013699,2]
[382455524,1756632379789,534.73046553,0.00017574,2]
[382455525,1756632382673,2136.78294024,0.00017574,2]
[382455579,1756632638232,-1358.10146556,0.00018042,2]
[382455581,1756632638242,-1306.0412219,0.0001805,2]
[382455583,1756632638252,-3405.85507975,0.00018054,2]
[382455585,1756632638262,-320.14739714,0.00018074,2]
[382455587,1756632638273,-985.89382472,0.00018074,2]
[382455589,1756632638283,-1306.04122186,0.00018097,2]
[382455591,1756632638292,-1306.04122186,0.00018121,2]
[382455593,1756632638301,-2618.2481025,0.0001814,2]
[382455595,1756632638311,-300.0,0.00018141,2]
[382455598,1756632638320,-899.0,0.00018141,2]
[382455601,1756632638330,-300.0,0.00018141,2]
[382455604,1756632638339,-1665.75261514,0.00018142,2]
[382455607,1756632638350,-48334.24738486,0.00018142,2]
[382455610,1756632638359,-1200.0,0.00018142,2]
[382455613,1756632638368,-480.0,0.00018142,2]
[382455616,1756632638377,-480.0,0.00018142,2]
[382455619,1756632638386,-457.56722464,0.00018142,2]
[382455622,1756632638395,-480.0,0.00018142,2]
[382455625,1756632638404,-480.0,0.00018142,2]
[382455628,1756632638413,-1499.92,0.00018142,2]
[382455631,1756632638423,-480.0,0.00018142,2]
[382455634,1756632638432,-480.0,0.00018142,2]
[382455637,1756632638441,-766.82,0.00018142,2]
[382455640,1756632638450,-480.0,0.00018142,2]
[382455642,1756632638460,-481.56714841,0.00018142,2]
[382455644,1756632638469,-1723.35,0.00018142,2]
[382455646,1756632638478,-2817.07,0.00018142,3]
[382455648,1756632638487,-1408.53,0.00018142,3]
[382455650,1756632638497,-704.27,0.00018142,3]
[382455652,1756632638506,-352.13,0.00018142,3]
[382455653,1756632638515,-176.07,0.00018142,3]
[382455656,1756632638526,-528.21,0.00018142,3]
[382455658,1756632638536,-500.0,0.00018142,2]
[382455660,1756632638545,-500.0,0.00018142,2]
[382455662,1756632638554,-183.65153987,0.00018142,2]
[382455664,1756632638564,-500.0,0.00018142,2]
[382455666,1756632638573,-500.0,0.00018142,2]
[382455668,1756632638583,-500.0,0.00018142,2]
[382455670,1756632638592,-241.1663351,0.00018142,2]
[382455672,1756632638601,-500.0,0.00018142,2]
[382455674,1756632638611,-500.0,0.00018142,2]
[382455676,1756632638621,-500.0,0.00018142,2]
[382455678,1756632638630,-500.0,0.00018142,2]
[382455680,1756632638639,-500.0,0.00018142,2]
[382455681,1756632638649,-500.0,0.00018142,2]
[382455684,1756632638659,-500.0,0.00018142,2]
[382455686,1756632638669,-500.0,0.00018142,2]
[382455688,1756632638677,-500.0,0.00018142,2]
[382455690,1756632638687,-500.0,0.00018142,2]
[382455692,1756632638696,-500.0,0.00018142,2]
[382455693,1756632638705,-500.0,0.00018142,2]
[382455696,1756632638715,-500.0,0.00018142,2]
[382455697,1756632638724,-500.0,0.00018142,2]
[382455700,1756632638734,-221.37328456,0.00018142,2]
[382455702,1756632638746,-550.45074056,0.00018142,2]
[382455704,1756632638756,-500.0,0.00018142,2]
[382455706,1756632638765,-500.0,0.00018142,2]
[382455708,1756632638775,-500.0,0.00018142,2]
[382455710,1756632638787,-500.0,0.00018142,2]
[382455712,1756632639008,-500.0,0.00018142,2]
[382455714,1756632639018,-500.0,0.00018142,2]
[382455716,1756632639027,-453.34283965,0.00018142,2]
[382455718,1756632639037,-500.0,0.00018142,2]
[382455720,1756632639046,-500.0,0.00018142,2]
[382455722,1756632639055,-500.0,0.00018142,2]
[382455723,1756632639064,-500.0,0.00018142,2]
[382455725,1756632639074,-500.0,0.00018142,2]
[382455727,1756632639084,-500.0,0.00018142,2]
[382455728,1756632639094,-500.0,0.00018142,2]
[382455730,1756632639104,-500.0,0.00018142,2]
[382455732,1756632639114,-500.0,0.00018142,2]
[382455734,1756632639124,-500.0,0.00018142,2]
[382455736,1756632639133,-500.0,0.00018142,2]
[382455738,1756632639142,-500.0,0.00018142,2]
[382455740,1756632639152,-500.0,0.00018142,2]
[382455742,1756632639161,-500.0,0.00018142,2]
[382455744,1756632639171,-509.01152058,0.00018142,2]
[382455746,1756632639180,-500.0,0.00018142,2]
[382455748,1756632639190,-500.0,0.00018142,2]
[382455750,1756632639199,-322.63598143,0.00018142,2]
[382455752,1756632639208,-500.0,0.00018142,2]
[382455754,1756632639218,-198.69832969,0.00018142,2]
[382455756,1756632639228,-500.0,0.00018142,2]
[382455758,1756632639237,-500.0,0.00018142,2]
[382455760,1756632639246,-500.0,0.00018142,2]
[382455762,1756632639255,-500.0,0.00018142,2]
[382455764,1756632639264,-466.34629816,0.00018142,2]
[382455766,1756632639273,-500.0,0.00018142,2]
[382455768,1756632639283,-500.0,0.00018142,2]
[382455770,1756632639292,-500.0,0.00018142,2]
[382455772,1756632639301,-500.0,0.00018142,2]
[382455774,1756632639310,-500.0,0.00018142,2]
[382455776,1756632639320,-500.0,0.00018142,2]
[382455778,1756632639330,-500.0,0.00018142,2]
[382455780,1756632639339,-500.0,0.00018142,2]
[382455782,1756632639349,-320.89362917,0.00018142,2]
[382455784,1756632639358,-500.0,0.00018142,2]
[382455786,1756632639367,-500.0,0.00018142,2]
[382455788,1756632639376,-500.0,0.00018142,2]
[382455790,1756632639386,-500.0,0.00018142,2]
[382455792,1756632639395,-500.0,0.00018142,2]
[382455794,1756632639404,-500.0,0.00018142,2]
[382455796,1756632639413,-500.0,0.00018142,2]
[382455798,1756632639423,-500.0,0.00018142,2]
[382455800,1756632639432,-500.0,0.00018142,2]
[382455802,1756632639441,-500.0,0.00018142,2]
[382455803,1756632639451,-500.0,0.00018142,2]
[382455806,1756632639460,-500.0,0.00018142,2]
[382455807,1756632639470,-500.0,0.00018142,2]
[382455810,1756632639479,-500.0,0.00018142,2]
[382455812,1756632639490,-500.0,0.00018142,2]
[382455814,1756632639501,-500.0,0.00018142,2]
[382455816,1756632639510,-500.0,0.00018142,2]
[382455818,1756632639519,-500.0,0.00018142,2]
[382455820,1756632639535,-500.0,0.00018142,2]
[382455822,1756632639545,-500.0,0.00018142,2]
[382455824,1756632639554,-500.0,0.00018142,2]
[382455826,1756632639564,-500.0,0.00018142,2]
[382455828,1756632639573,-500.0,0.00018142,2]
[382455830,1756632639584,-421.12412358,0.00018142,2]
[382455832,1756632639594,-500.0,0.00018142,2]
[382455834,1756632639603,-500.0,0.00018142,2]
[382455836,1756632639614,-500.0,0.00018142,2]
[382455839,1756632639623,-500.0,0.00018142,2]
[382455841,1756632639632,-500.0,0.00018142,2]
[382455843,1756632639642,-500.0,0.00018142,2]
[382455845,1756632639653,-500.0,0.00018142,2]
[382455847,1756632639663,-500.0,0.00018142,2]
[382455849,1756632639672,-500.0,0.00018142,2]
[382455851,1756632639682,-500.0,0.00018142,2]
[382455853,1756632639691,-500.0,0.00018142,2]
[382455855,1756632639702,-500.0,0.00018142,2]
[382455857,1756632639711,-500.0,0.00018142,2]
[382455859,1756632639720,-500.0,0.00018142,2]
[382455861,1756632639730,-500.0,0.00018142,2]
[382455863,1756632639739,-500.0,0.00018142,2]
[382455865,1756632639748,-500.0,0.00018142,2]
[382455867,1756632639758,-500.0,0.00018142,2]
[382455869,1756632639768,-500.0,0.00018142,2]
[382455871,1756632639777,-300.0,0.00018142,2]
[382455873,1756632639787,-500.0,0.00018143,2]
[382455875,1756632639796,-500.0,0.00018143,2]
[382455877,1756632639805,-500.0,0.00018143,2]
[382455881,1756632639815,-500.0,0.00018143,2]
[382455884,1756632639824,-500.0,0.00018143,2]
[382455885,1756632639834,-500.0,0.00018143,2]
[382455887,1756632639843,-500.0,0.00018143,2]
[382455889,1756632639853,-519.72023464,0.00018143,2]
[382455891,1756632639862,-229.51661113,0.00018143,2]
[382455893,1756632639871,-250.0,0.00018143,2]
[382455894,1756632639881,-250.0,0.00018143,2]
[382455896,1756632639890,-250.0,0.00018143,2]
[382455898,1756632639900,-250.0,0.00018143,2]
[382455900,1756632639909,-250.0,0.00018143,2]
[382455901,1756632639918,-250.0,0.00018143,2]
[382455902,1756632639928,-250.0,0.00018143,2]
[382455903,1756632639937,-250.0,0.00018143,2]